bitfinex-derivatives/quotes_BTCF0:USTF0_20251125
["timestamp","ask_amount","ask_price","bid_price","bid_amount"]
[1764100122293,0.1340841,86665.0,86664.0,0.22398881]
[1764100122593,0.1340841,86665.0,86664.0,0.01236265]
[1764100122796,0.1716346,86661.0,86660.0,0.42254]
[1764100122994,0.1716346,86661.0,86660.0,0.48235]
[1764100124194,0.1716346,86661.0,86660.0,0.3608]
[1764100124390,0.1340849,86659.0,86658.0,0.00017308]
[1764100124788,0.1340849,86659.0,86658.0,8e-08]
[1764100125192,0.39835,86661.0,86630.0,0.48235]
[1764100125193,0.0115486,86631.0,86630.0,0.48235]
[1764100125387,0.0115486,86631.0,86630.0,0.4946995]
[1764100125793,0.0115486,86631.0,86630.0,0.58626115]
[1764100125994,0.0115483,86634.0,86633.0,0.1330982]
[1764100126196,0.0115479,86637.0,86636.0,0.1330977]
[1764100126594,0.00017308,86639.0,86638.0,0.12155]
[1764100126900,0.00017308,86639.0,86638.0,0.48235]
[1764100130294,0.12271308,86639.0,86638.0,0.48235]
[1764100130495,0.0738585,86632.0,86631.0,0.48235]
[1764100130688,0.06040308,86639.0,86638.0,0.12155]
[1764100130888,0.12271308,86639.0,86638.0,0.12155]
[1764100131087,0.06023,86632.0,86631.0,0.48235]
[1764100131589,0.1340885,86632.0,86631.0,0.3608]
[1764100132803,0.1340897,86623.0,86622.0,0.37307544]
[1764100133403,0.1340897,86623.0,86622.0,0.01227544]
[1764100133593,0.1340897,86623.0,86622.0,0.13382544]
[1764100135699,0.0717797,86623.0,86622.0,0.13382544]
[1764100135897,0.20950004,86632.0,86631.0,0.12155]
[1764100135898,0.06023,86632.0,86631.0,0.12155]
[1764100136302,0.06023,86632.0,86631.0,0.06174]
[1764100136303,0.1340885,86632.0,86631.0,0.06174]
[1764100136493,0.0115497,86623.0,86622.0,0.22815732]
[1764100136693,0.0115493,86626.0,86623.0,0.0115497]
[1764100136902,0.0115493,86626.0,86625.0,0.12155]
[1764100137406,0.0717793,86626.0,86625.0,0.12155]
[1764100137799,0.1340893,86626.0,86625.0,0.12155]
[1764100138803,0.0115493,86626.0,86625.0,0.12155]
[1764100139304,0.0717793,86626.0,86625.0,0.12155]
[1764100140707,0.1340893,86626.0,86625.0,0.12155]
[1764100140908,0.1290797,86623.0,86622.0,0.10660732]
[1764100141403,0.1290797,86623.0,86622.0,0.16590732]
[1764100141607,0.1290797,86623.0,86622.0,0.22304732]
[1764100141907,0.1290797,86623.0,86622.0,0.16590732]
[1764100142113,0.1290797,86623.0,86622.0,0.22304732]
[1764100144002,0.0712797,86623.0,86622.0,0.23459712]
[1764100144609,0.1666282,86634.0,86633.0,0.11644]
[1764100145003,0.1666282,86634.0,86633.0,0.10584]
[1764100146807,0.0712797,86623.0,86622.0,0.22304732]
[1764100147003,0.1290797,86623.0,86622.0,0.22304732]
[1764100147209,0.0115497,86623.0,86622.0,0.22304732]
[1764100149712,0.0115497,86623.0,86622.0,0.23459712]
[1764100150012,0.0115497,86623.0,86622.0,0.22304732]
[1764100150708,0.1290794,86626.0,86625.0,0.1279893]
[1764100152009,0.1290794,86626.0,86625.0,0.11644]
[1764100153410,0.1290794,86626.0,86622.0,0.10660732]
[1764100153411,0.1291897,86623.0,86622.0,0.05660732]
[1764100153611,0.1291913,86611.0,86610.0,0.3608]
[1764100153802,0.1291913,86611.0,86610.0,0.05449]
[1764100154002,0.0115524,86603.0,86602.0,0.3608]
[1764100154206,0.0115516,86610.0,86609.0,0.0115515]
[1764100154502,0.1623408,86616.0,86615.0,0.0115508]
[1764100154705,0.1623408,86616.0,86615.0,0.1251408]
[1764100154910,0.1623408,86616.0,86615.0,0.11359]
[1764100156615,0.1623408,86616.0,86609.0,0.37461341]
[1764100156616,0.1291914,86610.0,86609.0,0.48820341]
[1764100157319,0.1291914,86610.0,86609.0,0.49975501]
[1764100157713,0.11764,86610.0,86609.0,0.49975501]
[1764100158612,0.11764,86616.0,86615.0,0.1251408]
[1764100158919,0.06960279,86624.0,86623.0,0.11359]
[1764100159219,0.1291898,86622.0,86621.0,0.47439]
[1764100160514,0.0694298,86622.0,86621.0,0.47439]
[1764100160711,0.0694298,86622.0,86621.0,0.48594]
[1764100161514,0.1291898,86622.0,86621.0,0.48594]
[1764100161812,0.00017319,86624.0,86623.0,0.1251397]
[1764100162013,0.51159,86648.0,86647.0,0.11359]
[1764100162321,0.4899864,86648.0,86647.0,0.11359]
[1764100162615,0.1557049,86659.0,86652.0,0.11359]
[1764100162616,0.1291858,86653.0,86652.0,0.11359]
[1764100163005,0.1291858,86653.0,86652.0,0.06359]
[1764100163914,0.05788,86653.0,86652.0,0.06359]
[1764100164320,0.03315,86656.0,86655.0,0.07592]
[1764100164620,0.05805319,86661.0,86660.0,0.07592]
[1764100164822,0.11781319,86661.0,86660.0,0.07592]
[1764100165008,0.11781319,86661.0,86660.0,0.03796]
[1764100165214,0.1291853,86656.0,86655.0,0.3608]
[1764100165411,0.1291864,86648.0,86647.0,0.39876]
[1764100165724,0.1291868,86645.0,86644.0,0.03813319]
[1764100165911,0.1291868,86645.0,86644.0,0.07609319]
[1764100166516,0.1291868,86645.0,86644.0,0.03813319]
[1764100166817,0.1291868,86645.0,86644.0,0.07609319]
[1764100167017,0.1291868,86645.0,86644.0,0.16830496]
[1764100167215,0.1291868,86645.0,86644.0,0.07609319]
[1764100168318,0.1291868,86645.0,86644.0,0.03813319]
[1764100168511,0.1291868,86645.0,86644.0,0.07609319]
[1764100170822,0.1291868,86645.0,86644.0,0.16877595]
[1764100171417,0.0115464,86648.0,86647.0,0.07592]
[1764100171916,0.1623364,86648.0,86647.0,0.07592]
[1764100173420,0.1291868,86645.0,86644.0,0.09285595]
[1764100175521,0.1291868,86645.0,86644.0,0.16877595]
[1764100176829,0.1291868,86645.0,86644.0,0.18032285]
[1764100177916,0.1291868,86645.0,86644.0,0.16877595]
[1764100180826,0.1291868,86645.0,86644.0,0.18032285]
[1764100181924,0.0115468,86646.0,86645.0,0.0115465]
[1764100182126,0.142,86648.0,86647.0,0.0750065]
[1764100182628,0.08726,86652.0,86651.0,0.075006]
[1764100182833,0.142,86652.0,86651.0,0.075006]
[1764100183130,0.08691,86660.0,86650.0,0.3608]
[1764100183331,0.0328,86660.0,86659.0,0.3723449]
[1764100183529,0.03315,86664.0,86659.0,0.3723449]
[1764100183827,0.153193,86674.0,86673.0,0.011543]
[1764100184931,0.10885,86666.0,86665.0,0.00017308]
[1764100186832,0.10985,86666.0,86665.0,0.00017308]
[1764100187226,0.10885,86666.0,86665.0,0.00017308]
[1764100188727,0.10885,86666.0,86665.0,0.09376576]
[1764100189035,0.10985,86666.0,86665.0,0.09376576]
[1764100193541,0.10885,86666.0,86665.0,0.09376576]
[1764100195848,0.10985,86666.0,86665.0,0.09376576]
[1764100198147,0.10985,86666.0,86665.0,0.10530986]
[1764100198346,0.10885,86666.0,86665.0,0.10530986]
[1764100199446,0.10885,86666.0,86665.0,0.09376576]
[1764100200953,0.10885,86666.0,86665.0,0.10530986]
[1764100201354,0.05411,86666.0,86665.0,0.10530986]
[1764100201544,0.0328,86681.0,86673.0,0.011543]
[1764100201748,0.03283,86695.0,86680.0,0.0115421]
[1764100201749,0.0328,86688.0,86680.0,0.0115421]
[1764100201945,0.13674,86695.0,86694.0,0.0115402]
[1764100202145,0.08606,86695.0,86694.0,0.3723402]
[1764100202340,0.08606,86695.0,86694.0,0.3664804]
[1764100202655,0.13674,86695.0,86694.0,0.3549402]
[1764100202848,0.13674,86695.0,86694.0,0.36859221]
[1764100203947,0.13674,86695.0,86694.0,0.46081541]
[1764100204143,0.13974,86695.0,86694.0,0.46081541]
[1764100204551,0.03583,86695.0,86694.0,0.46081541]
[1764100204951,0.003,86695.0,86694.0,0.46081541]
[1764100205157,0.00017308,86703.0,86702.0,0.0115392]
[1764100205347,0.00017308,86703.0,86702.0,0.3723392]
[1764100205747,0.05340308,86703.0,86702.0,0.3723392]
[1764100206354,0.00017308,86703.0,86702.0,0.3723392]
[1764100206653,0.46471,86715.0,86709.0,0.0115381]
[1764100206859,0.3608,86734.0,86711.0,0.0115379]
[1764100207050,0.0115364,86723.0,86710.0,0.372338]
[1764100207249,0.03283,86712.0,86710.0,0.372338]
[1764100208057,0.10391,86711.0,86710.0,0.3608]
[1764100209351,0.001,86712.0,86711.0,0.011538]
[1764100209549,0.13674,86728.0,86723.0,0.0115364]
[1764100209749,0.13674,86728.0,86726.0,0.3608]
[1764100209950,0.03283,86728.0,86727.0,0.3723358]
[1764100210557,0.13674,86728.0,86727.0,0.3608]
[1764100210949,0.13774,86728.0,86727.0,0.3608]
[1764100211145,0.08706,86728.0,86727.0,0.3608]
[1764100211655,0.13958,86728.0,86727.0,0.3608]
[1764100212256,0.08706,86728.0,86727.0,0.3608]
[1764100212453,0.001,86728.0,86727.0,0.3608]
[1764100212753,0.001,86728.0,86727.0,0.46600932]
[1764100213159,0.03283,86736.0,86735.0,0.0115348]
[1764100213361,0.03283,86736.0,86735.0,0.3723348]
[1764100214060,0.03283,86736.0,86735.0,0.3608]
[1764100214361,0.03283,86744.0,86735.0,0.3608]
[1764100214362,0.03283,86744.0,86741.0,0.011534]
[1764100214865,0.06297598,86742.0,86741.0,0.011534]
[1764100215248,0.10678,86736.0,86735.0,0.3608]
[1764100215760,0.10678,86728.0,86727.0,0.45447352]
[1764100216760,0.03142,86733.0,86727.0,0.45447352]
[1764100216761,0.1382,86733.0,86727.0,0.45447352]
[1764100217060,0.10678,86728.0,86727.0,0.46600932]
[1764100217250,0.10678,86728.0,86727.0,0.45447352]
[1764100217647,0.1382,86733.0,86727.0,0.45447352]
[1764100217853,0.03142,86733.0,86730.0,0.0115353]
[1764100218364,0.11549598,86742.0,86739.0,0.0115342]
[1764100218657,0.05426,86740.0,86739.0,0.0115342]
[1764100218854,0.00871598,86742.0,86739.0,0.3723342]
[1764100219252,0.10678,86740.0,86739.0,0.3723342]
[1764100221062,0.00971598,86742.0,86739.0,0.3723342]
[1764100221452,0.09539598,86742.0,86739.0,0.3723342]
[1764100222059,0.00971598,86742.0,86739.0,0.3723342]
[1764100222664,0.001,86740.0,86739.0,0.3723342]
[1764100223563,0.04113598,86742.0,86739.0,0.3723342]
[1764100223954,0.00971598,86742.0,86739.0,0.3723342]
[1764100224160,0.3608,86759.0,86741.0,0.0115339]
[1764100224359,0.10678,86759.0,86758.0,0.3608]
[1764100224659,0.10678,86759.0,86758.0,0.3723317]
[1764100225269,0.1183116,86759.0,86758.0,0.45336097]
[1764100226161,0.1193116,86759.0,86758.0,0.09256097]
[1764100226362,0.1193116,86759.0,86749.0,0.3723329]
[1764100226363,0.10678,86750.0,86749.0,0.3723329]
[1764100226960,0.03142,86751.0,86749.0,0.46499571]
[1764100227864,0.001,86759.0,86749.0,0.46499571]
[1764100227865,0.10778,86759.0,86758.0,0.0115317]
[1764100228065,0.001,86759.0,86758.0,0.3723317]
[1764100228259,0.03142,86760.0,86758.0,0.3723317]
[1764100228459,0.118047,86780.0,86768.0,0.0115304]
[1764100228460,0.1382,86769.0,86768.0,0.0115304]
[1764100228663,0.1382,86769.0,86768.0,0.3723304]
[1764100228864,0.1382,86769.0,86768.0,0.3608]
[1764100229062,0.1382,86769.0,86768.0,0.37639497]
[1764100229469,0.1382,86769.0,86768.0,0.01559497]
[1764100229664,0.10678,86761.0,86760.0,0.00017297]
[1764100229866,0.10678,86761.0,86760.0,0.01170447]
[1764100230162,0.10678,86761.0,86760.0,0.00017297]
[1764100233170,0.10678,86761.0,86760.0,0.01509044]
[1764100236263,0.05426,86761.0,86760.0,0.01509044]
[1764100236472,0.03142,86769.0,86760.0,0.01509044]
[1764100236473,0.1382,86769.0,86768.0,0.0115304]
[1764100236770,0.1382,86769.0,86768.0,0.3723304]
[1764100236972,0.1382,86769.0,86768.0,0.3608]
[1764100237173,0.10678,86785.0,86782.0,0.0115284]
[1764100237367,0.10678,86782.0,86781.0,0.3608]
[1764100238370,0.10778,86782.0,86781.0,0.3608]
[1764100238770,0.05426,86771.0,86770.0,0.0115301]
[1764100238971,0.03142,86778.0,86768.0,0.3723304]
[1764100238972,0.08568,86769.0,86768.0,0.3723304]
[1764100241170,0.1382,86769.0,86768.0,0.3723304]
[1764100241367,0.1382,86769.0,86768.0,0.3608]
[1764100241570,0.09945,86761.0,86759.0,0.3608]
[1764100241765,0.09945,86761.0,86759.0,0.3723316]
[1764100242575,0.09945,86761.0,86759.0,0.3608]
[1764100243365,0.0115315,86760.0,86759.0,0.30263044]
[1764100243565,0.1109828,86750.0,86743.0,0.3608]
[1764100243768,0.02787,86751.0,86743.0,0.3608]
[1764100243769,0.1109836,86744.0,86743.0,0.3608]
[1764100243967,0.1109836,86744.0,86743.0,0.45207632]
[1764100244164,0.09945,86744.0,86743.0,0.45207632]
[1764100244366,0.09945,86744.0,86743.0,0.54912632]
[1764100245477,0.1109836,86744.0,86743.0,0.46716823]
[1764100245672,0.1109836,86744.0,86743.0,0.10636823]
[1764100245872,0.1109836,86744.0,86743.0,0.001]
[1764100246375,0.12532,86742.0,86741.0,0.0115339]
[1764100246580,0.12532,86742.0,86741.0,0.1023142]
[1764100246771,0.12532,86742.0,86741.0,0.1098639]
[1764100246971,0.07563,86742.0,86741.0,0.1098639]
[1764100247372,0.12532,86742.0,86741.0,0.1098639]
[1764100248172,0.12532,86742.0,86741.0,0.20180651]
[1764100249571,0.48812,86751.0,86750.0,0.1098628]
[1764100250174,0.12732,86751.0,86750.0,0.4706628]
[1764100250674,0.1388527,86751.0,86750.0,0.45913]
[1764100251274,0.12732,86751.0,86750.0,0.45913]
[1764100254583,0.04993286,86752.0,86751.0,0.1098627]
[1764100254873,0.09962286,86752.0,86751.0,0.1098627]
[1764100256374,0.09962286,86752.0,86751.0,0.09833]
[1764100256685,0.1388527,86751.0,86750.0,0.3608]
[1764100257082,0.1388527,86751.0,86750.0,0.40884]
[1764100257586,0.12732,86751.0,86750.0,0.45913]
[1764100259079,0.12732,86751.0,86750.0,0.3608]
[1764100260088,0.12732,86751.0,86750.0,0.40518]
[1764100260289,0.12732,86751.0,86750.0,0.45105]
[1764100260479,0.1388527,86751.0,86750.0,0.40518]
[1764100260679,0.1388527,86751.0,86750.0,0.3608]
[1764100261081,0.12732,86751.0,86750.0,0.3608]
[1764100261987,0.12251,86744.0,86743.0,0.1017837]
[1764100262290,0.12251,86744.0,86743.0,0.20517624]
[1764100262497,0.04717,86744.0,86743.0,0.20517624]
[1764100262697,0.12207,86751.0,86750.0,0.1017828]
[1764100262895,0.12207,86751.0,86750.0,0.4625828]
[1764100263602,0.00017286,86752.0,86751.0,0.09025]
[1764100263800,0.04717,86768.0,86767.0,0.1017805]
[1764100264000,0.455,86772.0,86771.0,0.10178]
[1764100264202,0.07548,86776.0,86775.0,0.1017795]
[1764100264401,0.3608,86783.0,86782.0,0.1017785]
[1764100264402,0.455,86783.0,86782.0,0.1017785]
[1764100264899,0.455,86783.0,86782.0,0.09025]
[1764100265095,0.455,86783.0,86774.0,0.04455286]
[1764100265096,0.1057295,86775.0,86774.0,0.04455286]
[1764100265603,0.1057295,86775.0,86774.0,0.00017286]
[1764100266310,0.0942,86775.0,86774.0,0.09042286]
[1764100266600,0.0942,86775.0,86774.0,0.18089217]
[1764100266804,0.0942,86775.0,86774.0,0.09042286]
[1764100267302,0.0942,86775.0,86774.0,0.04455286]
[1764100267605,0.0952,86775.0,86774.0,0.09042286]
[1764100268206,0.04817,86775.0,86774.0,0.09042286]
[1764100268806,0.0952,86775.0,86774.0,0.09042286]
[1764100269303,0.0952,86775.0,86774.0,0.18195251]
[1764100269606,0.001,86775.0,86774.0,0.19383272]
[1764100269802,0.001,86775.0,86774.0,0.09042286]
[1764100269994,0.001,86775.0,86774.0,0.18245962]
[1764100270196,0.001,86775.0,86774.0,0.09042286]
[1764100271604,0.001,86775.0,86774.0,0.18424835]
[1764100271800,0.001,86775.0,86774.0,0.09042286]
[1764100272000,0.0943,86775.0,86774.0,0.09042286]
[1764100272698,0.0943,86775.0,86774.0,0.18054159]
[1764100273096,0.0943,86775.0,86774.0,0.19362963]
[1764100273299,0.001,86775.0,86774.0,0.29375923]
[1764100273506,0.001,86775.0,86774.0,0.19042119]
[1764100275510,0.09349,86775.0,86774.0,0.19042119]
[1764100275712,0.09349,86775.0,86774.0,0.09029159]
[1764100276607,0.09349,86775.0,86763.0,0.18224]
[1764100276608,0.02577,86769.0,86764.0,0.0443]
[1764100276808,0.00209762,86778.0,86766.0,0.0115306]
[1764100277011,0.11826,86769.0,86768.0,0.3608]
[1764100277200,0.19743463,86780.0,86768.0,0.3608]
[1764100277398,0.01153,86771.0,86768.0,0.3608]
[1764100277603,0.0115313,86761.0,86760.0,0.43474]
[1764100278014,0.0115313,86761.0,86760.0,0.4829]
[1764100279109,0.0115313,86761.0,86760.0,0.0263]
[1764100279302,0.0115313,86761.0,86752.0,0.45309824]
[1764100279303,0.0115324,86753.0,86752.0,0.54889824]
[1764100279507,0.011532,86756.0,86753.0,0.1073324]
[1764100279708,0.011532,86756.0,86753.0,0.0958]
[1764100279912,0.0115324,86753.0,86752.0,0.09229824]
[1764100280209,0.0115324,86753.0,86752.0,0.13993824]
[1764100280403,0.0115324,86753.0,86752.0,0.19963074]
[1764100280809,0.011532,86756.0,86754.0,0.0591722]
[1764100281011,0.36097286,86761.0,86760.0,0.0958]
[1764100281214,0.37250416,86761.0,86760.0,0.1221]
[1764100281402,0.40465286,86761.0,86760.0,0.11974]
[1764100282106,0.36097286,86761.0,86760.0,0.11974]
[1764100282507,0.3608,86768.0,86767.0,0.0958]
[1764100282701,0.40684,86780.0,86779.0,0.0958]
[1764100283305,0.38382,86780.0,86779.0,0.0958]
[1764100283501,0.395348,86786.0,86785.0,0.1073281]
[1764100283718,0.418368,86786.0,86785.0,0.0958]
[1764100284614,0.38382,86786.0,86785.0,0.0958]
[1764100285207,0.40684,86786.0,86785.0,0.0958]
[1764100285808,0.40684,86786.0,86785.0,0.0461]
[1764100286103,0.40684,86786.0,86785.0,0.09374]
[1764100287103,0.09249,86780.0,86779.0,0.18788962]
[1764100287412,0.1040188,86780.0,86779.0,0.0958]
[1764100287814,0.1040199,86772.0,86771.0,0.09597286]
[1764100288110,0.0115283,86784.0,86773.0,0.1073297]
[1764100288310,0.0115296,86774.0,86773.0,0.0958]
[1764100289211,0.0115293,86777.0,86776.0,0.0958]
[1764100289606,0.0115297,86773.0,86772.0,0.0958]
[1764100290710,0.0115297,86773.0,86772.0,0.4566]
[1764100290912,0.3608,86787.0,86786.0,0.0958]
[1764100291219,0.3723279,86787.0,86786.0,0.0958]
[1764100291419,0.3723279,86787.0,86778.0,0.0263]
[1764100291420,0.0115289,86779.0,86778.0,0.1221]
[1764100294614,0.0115289,86779.0,86778.0,0.0263]
[1764100294922,0.0115297,86773.0,86772.0,0.0958]
[1764100296318,0.0115297,86773.0,86771.0,0.00017286]
[1764100296626,0.3608,86772.0,86771.0,0.00017286]
[1764100296821,0.3608,86772.0,86771.0,0.04781286]
[1764100297322,0.3608,86772.0,86771.0,0.09597286]
[1764100297518,0.0115297,86773.0,86771.0,0.09597286]
[1764100297717,0.0115297,86773.0,86771.0,0.00017286]
[1764100297914,0.0115297,86773.0,86771.0,0.09597286]
[1764100298110,0.0115297,86773.0,86772.0,0.0958]
[1764100301127,0.1005397,86773.0,86772.0,0.0958]
[1764100301921,0.08901,86772.0,86771.0,0.00017286]
[1764100302129,0.44981,86772.0,86771.0,0.00017286]
[1764100302425,0.44981,86772.0,86771.0,0.09108286]
[1764100307633,0.44981,86772.0,86771.0,0.00017286]
[1764100309431,0.1005411,86763.0,86762.0,0.45171]
[1764100310636,0.0115307,86766.0,86765.0,0.0115304]
[1764100310831,0.1005404,86769.0,86768.0,0.0744702]
[1764100311037,0.1005404,86769.0,86768.0,0.1653802]
[1764100312133,0.1005403,86769.0,86768.0,0.1653802]
[1764100312338,0.0115303,86769.0,86768.0,0.1653802]
[1764100312530,0.0559703,86769.0,86768.0,0.1653802]
[1764100312730,0.04444,86769.0,86768.0,0.1653802]
[1764100312934,0.08901,86769.0,86768.0,0.15385]
[1764100317340,0.08901,86769.0,86768.0,0.09091]
[1764100318332,0.08901,86769.0,86768.0,0.04531]
[1764100318526,0.08901,86769.0,86768.0,0.09091]
[1764100319935,0.2136111,86763.0,86762.0,0.46425]
[1764100320342,0.213612,86756.0,86755.0,0.56365]
[1764100321234,0.213612,86756.0,86755.0,0.5751821]
[1764100321442,0.213612,86756.0,86755.0,0.56365]
[1764100321941,0.213612,86756.0,86755.0,0.46425]
[1764100322135,0.213612,86756.0,86755.0,0.56365]
[1764100323234,0.011532,86756.0,86755.0,0.56365]
[1764100324233,0.2136109,86764.0,86763.0,0.20285]
[1764100324632,0.2136109,86764.0,86763.0,0.15285]
[1764100325940,0.5744109,86764.0,86763.0,0.15285]
[1764100326344,0.213612,86756.0,86755.0,0.56365]
[1764100328839,0.20208,86756.0,86755.0,0.56365]
[1764100329039,0.0115319,86757.0,86756.0,0.20285]
[1764100329238,0.2136119,86757.0,86756.0,0.20285]
[1764100329440,0.20208,86756.0,86755.0,0.3608]
[1764100329743,0.20208,86756.0,86755.0,0.56365]
[1764100330136,0.10296,86756.0,86755.0,0.5751821]
[1764100330334,0.3608,86764.0,86763.0,0.20285]
[1764100330335,0.46376,86764.0,86763.0,0.20285]
[1764100330644,0.21378286,86771.0,86770.0,0.20285]
[1764100330845,0.39598286,86771.0,86770.0,0.20285]
[1764100331042,0.39598286,86771.0,86770.0,0.05395]
[1764100332749,0.39698286,86771.0,86770.0,0.05395]
[1764100334233,0.39698286,86771.0,86770.0,0.15029]
[1764100334641,0.2074316,86759.0,86758.0,0.26017]
[1764100334946,0.2074316,86759.0,86758.0,0.20023]
[1764100337643,0.1110616,86759.0,86758.0,0.26188]
[1764100337852,0.0115316,86759.0,86758.0,0.26188]
[1764100338242,0.1822,86768.0,86758.0,0.26188]
[1764100338447,0.1822,86768.0,86767.0,0.20023]
[1764100338448,0.2074304,86768.0,86767.0,0.20023]
[1764100340346,0.1959,86766.0,86765.0,0.30388589]
[1764100340545,0.1959,86766.0,86765.0,0.20023]
[1764100341143,0.1959,86766.0,86765.0,0.30388589]
[1764100341946,0.1959,86766.0,86765.0,0.36553589]
[1764100342446,0.1110604,86768.0,86767.0,0.20023]
[1764100342754,0.1110604,86768.0,86767.0,0.3039018]
[1764100342945,0.2074304,86768.0,86767.0,0.3039018]
[1764100343359,0.2074304,86768.0,86767.0,0.20023]
[1764100345349,0.2074304,86768.0,86767.0,0.3039018]
[1764100345950,0.2074304,86768.0,86767.0,0.2539018]
[1764100346846,0.1110604,86768.0,86767.0,0.15023]
[1764100347046,0.1110604,86768.0,86767.0,0.2539018]
[1764100347247,0.1110604,86768.0,86767.0,0.15023]
[1764100347644,0.09953,86768.0,86767.0,0.15023]
[1764100347851,0.01170296,86771.0,86770.0,0.20023]
[1764100348153,0.11123296,86771.0,86770.0,0.20023]
[1764100348551,0.01170296,86771.0,86770.0,0.20023]
[1764100350252,0.11123296,86771.0,86770.0,0.20023]
[1764100350848,0.01170296,86771.0,86770.0,0.20023]
[1764100351044,0.00017286,86771.0,86770.0,0.20023]
[1764100351559,6.318e-05,86771.0,86770.0,0.34548789]
[1764100351947,6.318e-05,86771.0,86770.0,0.20023]
[1764100352147,6.318e-05,86771.0,86770.0,0.34531072]
[1764100352351,6.318e-05,86771.0,86770.0,0.14508072]
[1764100352352,0.19596318,86771.0,86770.0,0.14508072]
[1764100352550,0.1959,86768.0,86767.0,0.20752882]
[1764100352761,0.1959,86766.0,86765.0,0.20752882]
[1764100353051,0.1959,86766.0,86765.0,0.30386882]
[1764100353256,0.1959,86766.0,86765.0,0.10363882]
[1764100353656,0.1959,86764.0,86763.0,0.10363882]
[1764100354256,0.1959,86762.0,86761.0,0.05433882]
[1764100354460,0.2074321,86755.0,86754.0,0.00017286]
[1764100354852,0.2074321,86755.0,86754.0,0.10406286]
[1764100355159,0.2074321,86755.0,86754.0,0.20040286]
[1764100357957,0.1959,86755.0,86754.0,0.21193516]
[1764100358162,0.09953,86755.0,86754.0,0.21193516]
[1764100360259,0.011532,86756.0,86754.0,0.01170516]
[1764100360463,0.011532,86756.0,86755.0,0.20023]
[1764100360962,0.111062,86756.0,86755.0,0.20023]
[1764100362460,0.011532,86756.0,86755.0,0.2117621]
[1764100363663,0.011532,86756.0,86755.0,0.20023]
[1764100363856,0.114092,86756.0,86755.0,0.20023]
[1764100365661,0.011532,86756.0,86755.0,0.20023]
[1764100366063,0.114092,86756.0,86755.0,0.20023]
[1764100366266,0.011532,86756.0,86755.0,0.20023]
[1764100367369,0.209682,86756.0,86755.0,0.20023]
[1764100367669,0.114092,86756.0,86755.0,0.20023]
[1764100367867,0.011532,86756.0,86755.0,0.20023]
[1764100369964,0.2672807,86766.0,86765.0,0.14429]
[1764100371060,0.2672807,86766.0,86765.0,0.09459]
[1764100371260,0.2672807,86766.0,86765.0,0.19277]
[1764100373171,0.19915,86766.0,86765.0,0.19277]
[1764100373369,0.001,86766.0,86765.0,0.19277]
[1764100376177,0.2106807,86766.0,86765.0,0.19277]
[1764100376361,0.2672807,86766.0,86765.0,0.19277]
[1764100376875,0.0125307,86766.0,86765.0,0.19277]
[1764100377069,0.1150907,86766.0,86765.0,0.29636283]
[1764100377375,0.001,86766.0,86765.0,0.19277]
[1764100377870,6.318e-05,86771.0,86770.0,0.2054201]
[1764100378064,0.0115271,86794.0,86770.0,0.2054201]
[1764100378065,0.0115284,86783.0,86782.0,0.19389]
[1764100378264,0.12562012,86790.0,86785.0,0.19389]
[1764100378265,0.209678,86786.0,86785.0,0.19389]
[1764100379374,0.19815,86786.0,86785.0,0.19389]
[1764100379573,0.209628,86786.0,86785.0,0.19389]
[1764100380167,0.1981,86786.0,86785.0,0.19389]
[1764100380376,0.1991,86786.0,86785.0,0.19389]
[1764100381369,0.001,86786.0,86785.0,0.19389]
[1764100381569,0.0566,86802.0,86784.0,0.0630382]
[1764100381570,0.18305,86802.0,86801.0,0.188466]
[1764100381775,0.18305,86802.0,86801.0,0.17694]
[1764100382269,0.21313012,86811.0,86810.0,0.17694]
[1764100382472,0.18305,86811.0,86810.0,0.17694]
[1764100382670,0.18305,86811.0,86810.0,0.12734]
[1764100382872,0.1945757,86803.0,86802.0,0.17711286]
[1764100384678,0.5563757,86803.0,86802.0,0.00017286]
[1764100385275,0.001,86803.0,86802.0,0.17711286]
[1764100386279,0.011524,86817.0,86810.0,0.0115248]
[1764100386473,0.53961012,86820.0,86807.0,0.0568552]
[1764100386670,0.73418362,86820.0,86819.0,0.17694]
[1764100386866,0.0115252,86807.0,86806.0,0.53774]
[1764100387183,0.1945752,86807.0,86806.0,0.53774]
[1764100387878,0.0990347,86812.0,86806.0,0.3608]
[1764100388076,0.18305,86816.0,86807.0,0.04533]
[1764100388281,0.18305,86816.0,86815.0,0.17694]
[1764100389579,0.1945728,86826.0,86825.0,0.17694]
[1764100389771,0.1945728,86826.0,86825.0,0.08934]
[1764100389974,0.1945728,86826.0,86825.0,0.12694]
[1764100391281,0.1945728,86826.0,86825.0,0.03934]
[1764100392478,0.18562,86816.0,86815.0,0.0901856]
[1764100392678,0.18562,86816.0,86815.0,0.19094]
[1764100393282,0.0115237,86819.0,86815.0,0.19094]
[1764100393475,0.2504724,86828.0,86827.0,0.19094]
[1764100394875,0.23895,86828.0,86827.0,0.2024626]
[1764100395588,0.18562,86828.0,86827.0,0.2024626]
[1764100395782,0.250472,86832.0,86831.0,0.19094]
[1764100396384,0.23895,86832.0,86831.0,0.202462]
[1764100396781,0.0115215,86835.0,86834.0,0.19094]
[1764100397091,0.3608,86839.0,86838.0,0.19094]
[1764100397288,0.5579402,86846.0,86845.0,0.19094]
[1764100397588,0.5579402,86846.0,86845.0,0.14094]
[1764100398281,0.5579402,86846.0,86845.0,0.23198934]
[1764100399084,0.18562,86846.0,86845.0,0.23198934]
[1764100399385,0.23895,86849.0,86848.0,0.1006]
[1764100399589,0.23895,86849.0,86848.0,0.4614]
[1764100399988,0.23895,86849.0,86848.0,0.3723197]
[1764100400177,0.23895,86849.0,86848.0,0.4614]
[1764100400382,0.23895,86849.0,86848.0,0.0503]
[1764100400584,0.18562,86846.0,86845.0,0.09032756]
[1764100400885,0.0115198,86848.0,86847.0,0.1006]
[1764100401087,0.2504696,86849.0,86848.0,0.1006]
[1764100402082,0.1971407,86841.0,86840.0,0.4614]
[1764100402285,0.1971407,86841.0,86840.0,0.5556427]
[1764100402992,0.1058301,86846.0,86845.0,0.1006]
[1764100403287,0.1971401,86846.0,86845.0,0.1006]
[1764100403682,0.0115207,86841.0,86840.0,0.5556427]
[1764100403990,0.18562,86841.0,86840.0,0.5556427]
[1764100405883,0.18562,86841.0,86840.0,0.5671635]